fUSD/lending_fUSD_20250519
["ID","MTS","AMOUNT","RATE_DAILY","PERIOD"]
[361583240,1747624239975,-400.0,0.00013698,2]
[361583241,1747624239986,-400.0,0.00013698,2]
[361583242,1747624239996,-400.0,0.00013698,2]
[361583243,1747624240007,-400.0,0.00013698,2]
[361583244,1747624240018,-411.72807443,0.00013698,2]
[361583245,1747624240029,-400.0,0.00013698,2]
[361583246,1747624240042,-400.0,0.00013698,2]
[361583247,1747624240053,-400.0,0.00013698,2]
[361583248,1747624240064,-400.0,0.00013698,2]
[361583249,1747624240075,-400.0,0.00013698,2]
[361583250,1747624240087,-400.0,0.00013698,2]
[361583251,1747624240098,-447.28,0.00013698,2]
[361583252,1747624240109,-400.30983084,0.00013698,2]
[361583253,1747624240120,-425.14,0.00013698,2]
[361583254,1747624240130,-400.0,0.00013698,2]
[361583255,1747624240141,-954.25,0.00013698,2]
[361583256,1747624240152,-910.48,0.00013698,2]
[361583257,1747624240162,-400.0,0.00013698,2]
[361583258,1747624240173,-400.0,0.00013698,2]
[361583259,1747624240184,-400.0,0.00013698,2]
[361583260,1747624240196,-400.0,0.00013698,2]
[361583261,1747624240210,-400.0,0.00013698,2]
[361583262,1747624240222,-743.41,0.00013698,2]
[361583263,1747624240234,-400.0,0.00013698,2]
[361583264,1747624240247,-400.0,0.00013698,2]
[361583265,1747624240258,-400.0,0.00013698,2]
[361583266,1747624240270,-400.0,0.00013698,2]
[361583267,1747624240283,-1331.93,0.00013698,2]
[361583268,1747624240295,-590.78,0.00013698,2]
[361583269,1747624240306,-582.85,0.00013698,2]
[361583270,1747624240318,-400.0,0.00013698,2]
[361583271,1747624240330,-265.72993237,0.00013698,2]
[361583272,1747624240340,-400.0,0.00013698,2]
[361583273,1747624240351,-400.0,0.00013698,2]
[361583274,1747624240362,-1175.9,0.00013698,2]
[361583275,1747624240373,-400.0,0.00013698,2]
[361583276,1747624240388,-400.0,0.00013698,2]
[361583277,1747624240399,-401.93961744,0.00013698,2]
[361583278,1747624240413,-583.35,0.00013698,2]
[361583279,1747624240425,-400.0,0.00013698,2]
[361583280,1747624240437,-402.32087186,0.00013698,2]
[361583281,1747624240447,-463.37,0.00013698,2]
[361583282,1747624240458,-400.0,0.00013698,2]
[361583283,1747624240469,-400.0,0.00013698,2]
[361583284,1747624240479,-1540.98,0.00013698,2]
[361583285,1747624240491,-400.0,0.00013698,2]
[361583286,1747624240502,-400.0,0.00013698,2]
[361583287,1747624240512,-400.0,0.00013698,2]
[361583288,1747624240523,-409.90570315,0.00013698,2]
[361583290,1747624240534,-400.0,0.00013698,2]
[361583292,1747624240545,-400.0,0.00013698,2]
[361583294,1747624240556,-906.05,0.00013698,2]
[361583296,1747624240567,-499.02,0.00013698,2]
[361583298,1747624240578,-400.0,0.00013698,2]
[361583300,1747624240589,-400.0,0.00013698,2]
[361583302,1747624240600,-400.0,0.00013698,2]
[361583304,1747624240610,-1249.95,0.00013698,2]
[361583306,1747624240621,-736.22,0.00013698,2]
[361583309,1747624240633,-400.0,0.00013698,2]
[361583311,1747624240644,-1514.3,0.00013698,2]
[361583313,1747624240655,-400.0,0.00013698,2]
[361583315,1747624240665,-1157.41,0.00013698,2]
[361583317,1747624240677,-335.38447932,0.00013698,2]
[361583318,1747624240688,-400.0,0.00013698,2]
[361583319,1747624240698,-400.0,0.00013698,2]
[361583320,1747624240708,-400.0,0.00013698,2]
[361583321,1747624240719,-582.46,0.00013698,2]
[361583322,1747624240729,-400.0,0.00013698,2]
[361583323,1747624240739,-400.0,0.00013698,2]
[361583324,1747624240750,-400.0,0.00013698,2]
[361583325,1747624240761,-1190.78,0.00013698,2]
[361583326,1747624240771,-400.0,0.00013698,2]
[361583327,1747624240782,-400.0,0.00013698,2]
[361583328,1747624240792,-402.90798508,0.00013698,2]
[361583329,1747624240803,-400.0,0.00013698,2]
[361583330,1747624240814,-995.74,0.00013698,2]
[361583331,1747624240824,-400.0,0.00013698,2]
[361583332,1747624240837,-400.0,0.00013698,2]
[361583333,1747624240847,-466.17,0.00013698,2]
[361583334,1747624240858,-400.0,0.00013698,2]
[361583335,1747624240869,-400.0,0.00013698,2]
[361583336,1747624240879,-400.0,0.00013698,2]
[361583337,1747624240890,-444.91,0.00013698,2]
[361583338,1747624240901,-400.0,0.00013698,2]
[361583339,1747624240912,-420.24,0.00013698,2]
[361583340,1747624240926,-756.25,0.00013698,2]
[361583341,1747624240938,-401.33980176,0.00013698,2]
[361583342,1747624240950,-573.99,0.00013698,2]
[361583343,1747624240962,-400.0,0.00013698,2]
[361583344,1747624240973,-1533.07,0.00013698,2]
[361583345,1747624240985,-400.0,0.00013698,2]
[361583346,1747624240997,-400.0,0.00013698,2]
[361583347,1747624241008,-400.14963743,0.00013698,2]
[361583348,1747624241019,-402.77991428,0.00013698,2]
[361583349,1747624241032,-400.0,0.00013698,2]
[361583350,1747624241044,-400.0,0.00013698,2]
[361583351,1747624241055,-400.0,0.00013698,2]
[361583352,1747624241068,-186.19798223,0.00013698,2]
[361583353,1747624241081,-400.0,0.00013698,2]
[361583354,1747624241092,-2206.55,0.00013698,2]
[361583355,1747624241102,-490.36,0.00013698,2]
[361583356,1747624241113,-400.0,0.00013698,2]
[361583357,1747624241123,-443.13,0.00013698,2]
[361583358,1747624241135,-400.0,0.00013698,2]
[361583359,1747624241146,-448.45,0.00013698,2]
[361583360,1747624241156,-400.0,0.00013698,2]
[361583361,1747624241168,-400.0,0.00013698,2]
[361583362,1747624241179,-400.0,0.00013698,2]
[361583363,1747624241189,-400.0,0.00013698,2]
[361583364,1747624241203,-400.0,0.00013698,2]
[361583365,1747624241215,-405.37722844,0.00013698,2]
[361583366,1747624241227,-400.0,0.00013698,2]
[361583367,1747624241239,-1131.96,0.00013698,2]
[361583368,1747624241251,-467.99,0.00013698,2]
[361583369,1747624241263,-400.0,0.00013698,2]
[361583370,1747624241275,-400.0,0.00013698,2]
[361583371,1747624241287,-469.19,0.00013698,2]
[361583372,1747624241298,-400.0,0.00013698,2]
[361583373,1747624241310,-673.72,0.00013698,2]
[361583374,1747624241322,-400.0,0.00013698,2]
[361583375,1747624241336,-400.0,0.00013698,2]
[361583376,1747624241346,-400.0,0.00013698,2]
[361583377,1747624241357,-400.0,0.00013698,2]
[361583378,1747624241367,-400.0,0.00013698,2]
[361583379,1747624241378,-400.0,0.00013698,2]
[361583380,1747624241390,-748.58,0.00013698,2]
[361583381,1747624241400,-448.64,0.00013698,2]
[361583382,1747624241410,-400.0,0.00013698,2]
[361583383,1747624241420,-571.39,0.00013698,2]
[361583384,1747624241430,-471.15433203,0.00013698,2]
[361583385,1747624241440,-400.0,0.00013698,2]
[361583386,1747624241451,-400.0,0.00013698,2]
[361583387,1747624241461,-400.0,0.00013698,2]
[361583388,1747624241472,-501.29,0.00013698,2]
[361583389,1747624241482,-400.0,0.00013698,2]
[361583390,1747624241492,-400.0,0.00013698,2]
[361583391,1747624241503,-400.0,0.00013698,2]
[361583392,1747624241513,-400.0,0.00013698,2]
[361583393,1747624241523,-400.0,0.00013698,2]
[361583394,1747624241533,-400.0,0.00013698,2]
[361583395,1747624241544,-529.2,0.00013698,2]
[361583396,1747624241554,-400.0,0.00013698,2]
[361583397,1747624241565,-664.17,0.00013698,2]
[361583398,1747624241575,-968.32,0.00013698,2]
[361583399,1747624241588,-400.0,0.00013698,2]
[361583400,1747624241598,-400.0,0.00013698,2]
[361583401,1747624241608,-400.0,0.00013698,2]
[361583402,1747624241619,-260.10292389,0.00013698,2]
[361583403,1747624241629,-400.0,0.00013698,2]
[361583404,1747624241640,-400.0,0.00013698,2]
[361583405,1747624241650,-400.0,0.00013698,2]
[361583406,1747624241660,-400.0,0.00013698,2]
[361583407,1747624241670,-400.0,0.00013698,2]
[361583408,1747624242229,-220.62202116,0.00013698,2]
[361583409,1747624242309,-400.0,0.00013698,2]
[361583410,1747624242326,-1084.84,0.00013698,2]
[361583411,1747624242356,-1093.97,0.00013698,2]
[361583412,1747624242373,-400.0,0.00013698,2]
[361583413,1747624242386,-400.0,0.00013698,2]
[361583414,1747624242396,-400.0,0.00013698,2]
[361583415,1747624242405,-400.0,0.00013698,2]
[361583416,1747624242414,-593.3,0.00013698,2]
[361583417,1747624242424,-400.0,0.00013698,2]
[361583418,1747624242433,-432.37,0.00013698,2]
[361583419,1747624242442,-400.0,0.00013698,2]
[361583420,1747624242452,-400.0,0.00013698,2]
[361583421,1747624242465,-400.0,0.00013698,2]
[361583422,1747624242475,-1549.39,0.00013698,2]
[361583423,1747624242486,-474.48,0.00013698,2]
[361583424,1747624242495,-400.0,0.00013698,2]
[361583425,1747624242505,-450.0,0.00013698,2]
[361583426,1747624242516,-400.0,0.00013698,2]
[361583427,1747624242526,-817.6,0.00013698,2]
[361583428,1747624242535,-400.0,0.00013698,2]
[361583429,1747624242544,-400.0,0.00013698,2]
[361583430,1747624242555,-400.0,0.00013698,2]
[361583431,1747624242565,-486.16279226,0.00013698,2]
[361583432,1747624242574,-400.0,0.00013698,2]
[361583433,1747624242587,-400.0,0.00013698,2]
[361583434,1747624242596,-400.0,0.00013698,2]
[361583435,1747624242606,-526.06,0.00013698,2]
[361583436,1747624242615,-405.03,0.00013698,2]
[361583437,1747624242624,-400.0,0.00013698,2]
[361583438,1747624242634,-194.61618585,0.00013698,2]
[361583439,1747624242643,-500.0,0.00013698,2]
[361583440,1747624242652,-500.0,0.00013698,2]
[361583441,1747624242662,-500.0,0.00013698,2]
[361583442,1747624242672,-456.10019147,0.00013698,2]
[361583447,1747624243156,-43.89980853,0.00013698,2]
[361583448,1747624243165,-380.98327685,0.00013698,2]
[361583449,1747624243177,-828.63672315,0.00013698,2]
[361583450,1747624243186,-400.0,0.00013698,2]
[361583451,1747624243195,-965.54,0.00013698,2]
[361583452,1747624243204,-400.0,0.00013698,2]
[361583453,1747624243213,-206.17575349,0.00013698,2]
[361583454,1747624243222,-500.0,0.00013698,2]
[361583455,1747624243232,-442.34969899,0.00013698,2]
[361583456,1747624243251,-57.65030101,0.00013698,2]
[361583457,1747624243259,-500.0,0.00013698,2]
[361583458,1747624243269,-400.0,0.00013698,2]
[361583459,1747624243278,-662.81,0.00013698,2]
[361583460,1747624243287,-382.53912085,0.00013698,2]
[361583461,1747624243299,-17.46087915,0.00013698,2]
[361583462,1747624243308,-400.0,0.00013698,2]
[361583463,1747624243317,-400.0,0.00013698,2]
[361583464,1747624243326,-400.0,0.00013698,2]
[361583465,1747624243339,-532.05,0.00013698,2]
[361583466,1747624243348,-400.0,0.00013698,2]
[361583467,1747624243358,-796.25,0.00013698,2]
[361583468,1747624243367,-500.0,0.00013698,2]
[361583469,1747624243378,-500.0,0.00013698,2]
[361583470,1747624243387,-500.0,0.00013698,2]
[361583471,1747624243396,-400.0,0.00013698,2]
[361583472,1747624243406,-506.93393536,0.00013698,2]
[361583473,1747624243415,-400.0,0.00013698,2]
[361583474,1747624243424,-400.0,0.00013698,2]
[361583475,1747624243434,-400.0,0.00013698,2]
[361583476,1747624243444,-400.0,0.00013698,2]
[361583478,1747624243454,-400.0,0.00013698,2]
[361583480,1747624243464,-462.94,0.00013698,2]
[361583482,1747624243475,-635.35,0.00013698,2]
[361583484,1747624243485,-400.0,0.00013698,2]
[361583486,1747624243494,-400.0,0.00013698,2]
[361583488,1747624243504,-400.0,0.00013698,2]
[361583490,1747624243513,-454.38,0.00013698,2]
[361583492,1747624243522,-400.0,0.00013698,2]
[361583494,1747624243532,-400.0,0.00013698,2]
[361583496,1747624243541,-1033.99,0.00013698,2]
[361583498,1747624243550,-895.42,0.00013698,2]
[361583500,1747624243559,-400.0,0.00013698,2]
[361583502,1747624243569,-400.0,0.00013698,2]
[361583504,1747624243578,-400.0,0.00013698,2]
[361583506,1747624243591,-400.0,0.00013698,2]
[361583508,1747624243601,-400.0,0.00013698,2]
[361583510,1747624243610,-400.0,0.00013698,2]
[361583513,1747624243620,-459.66,0.00013698,2]
[361583516,1747624243629,-400.0,0.00013698,2]
[361583518,1747624243638,-966.75,0.00013698,2]
[361583520,1747624243647,-796.09,0.00013698,2]
[361583522,1747624243657,-458.92,0.00013698,2]
[361583524,1747624243666,-651.94,0.00013698,2]
[361583526,1747624243676,-400.0,0.00013698,2]
[361583528,1747624243685,-400.0,0.00013698,2]
[361583530,1747624243694,-400.0,0.00013698,2]
[361583532,1747624243703,-400.0,0.00013698,2]
[361583534,1747624243713,-347.40698549,0.00013698,2]
[361583536,1747624243726,-52.59301451,0.00013698,2]
[361583538,1747624243737,-277.21398549,0.00013698,2]
[361583565,1747624244139,-162.32601451,0.00013698,2]
[361583567,1747624244149,-298.43198749,0.00013698,2]
[361583569,1747624244160,-101.56801251,0.00013698,2]
[361583571,1747624244169,-400.0,0.00013698,2]
[361583573,1747624244178,-400.0,0.00013698,2]
[361583574,1747624244187,-22.04698749,0.00013698,2]
[361583575,1747624244198,-377.95301251,0.00013698,2]
[361583576,1747624244207,-183.35294053,0.00013698,2]
[361583577,1747624244216,-475.40208848,0.00013698,2]
[361583578,1747624244225,-400.0,0.00013698,2]
[361583579,1747624244234,-400.0,0.00013698,2]
[361583580,1747624244244,-400.0,0.00013698,2]
[361583581,1747624244253,-401.55,0.00013698,2]
[361583582,1747624244262,-400.0,0.00013698,2]
[361583583,1747624244271,-590.27,0.00013698,2]
[361583584,1747624244280,-400.0,0.00013698,2]
[361583585,1747624244290,-991.23,0.00013698,2]
[361583587,1747624244299,-772.63,0.00013698,2]
[361583589,1747624244309,-400.0,0.00013698,2]
[361583590,1747624244318,-400.0,0.00013698,2]
[361583591,1747624244327,-1101.56,0.00013698,2]
[361583592,1747624244340,-309.98865805,0.00013698,2]
[361583593,1747624244353,-190.01134195,0.00013698,2]
[361583594,1747624244428,-400.0,0.00013698,2]
[361583595,1747624244438,-400.0,0.00013698,2]
[361583596,1747624244447,-250.76352385,0.00013698,2]
[361583597,1747624244457,-400.0,0.00013698,2]
[361583598,1747624244467,-400.0,0.00013698,2]
[361583599,1747624244477,-400.0,0.00013698,2]
[361583600,1747624244487,-400.0,0.00013698,2]
[361583601,1747624244497,-400.0,0.00013698,2]
[361583602,1747624244507,-729.67,0.00013698,2]
[361583603,1747624244517,-400.0,0.00013698,2]
[361583604,1747624244526,-400.0,0.00013698,2]
[361583605,1747624244536,-400.0,0.00013698,2]
[361583606,1747624244545,-400.0,0.00013698,2]
[361583607,1747624244555,-400.0,0.00013698,2]
[361583608,1747624244564,-466.14,0.00013698,2]
[361583609,1747624244573,-400.0,0.00013698,2]
[361583610,1747624244585,-450.0,0.00013698,2]
[361583611,1747624244594,-400.0,0.00013698,2]
[361583612,1747624244603,-400.0,0.00013698,2]
[361583613,1747624244612,-603.81,0.00013698,2]
[361583614,1747624244621,-400.0,0.00013698,2]
[361583615,1747624244630,-400.0,0.00013698,2]
[361583616,1747624244639,-400.0,0.00013698,2]
[361583617,1747624244648,-400.0,0.00013698,2]
[361583618,1747624244657,-400.0,0.00013698,2]
[361583619,1747624244666,-400.0,0.00013698,2]
[361583620,1747624244675,-400.0,0.00013698,2]
[361583621,1747624244685,-1000.0,0.00013698,2]
[361583622,1747624244694,-400.0,0.00013698,2]
[361583623,1747624244703,-505.83,0.00013698,2]
[361583624,1747624244712,-400.0,0.00013698,2]
[361583625,1747624244721,-734.22,0.00013698,2]
[361583626,1747624244730,-400.0,0.00013698,2]
[361583627,1747624244739,-400.0,0.00013698,2]
[361583628,1747624244748,-478.05,0.00013698,2]
[361583629,1747624244757,-1185.05,0.00013698,2]
[361583630,1747624244766,-400.0,0.00013698,2]
[361583631,1747624244775,-558.07,0.00013698,2]
[361583632,1747624244784,-475.43,0.00013698,2]
[361583633,1747624244793,-504.01,0.00013698,2]
[361583634,1747624244803,-400.0,0.00013698,2]
[361583635,1747624244811,-400.0,0.00013698,2]
[361583636,1747624244820,-403.10499183,0.00013698,2]
[361583637,1747624244829,-400.0,0.00013698,2]
[361583638,1747624244841,-400.0,0.00013698,2]
[361583639,1747624244850,-400.0,0.00013698,2]
[361583640,1747624244859,-1967.23,0.00013698,2]
[361583641,1747624244867,-523.98,0.00013698,2]
[361583642,1747624244876,-405.23124854,0.00013698,2]
[361583643,1747624244885,-782.45,0.00013698,2]
[361583644,1747624244894,-400.0,0.00013698,2]
[361583645,1747624244904,-400.0,0.00013698,2]
[361583646,1747624244913,-400.0,0.00013698,2]
[361583647,1747624244923,-2224.27,0.00013698,2]
[361583648,1747624244933,-400.0,0.00013698,2]
[361583649,1747624244943,-400.0,0.00013698,2]
[361583650,1747624244952,-400.0,0.00013698,2]
[361583651,1747624244963,-1097.072694,0.00013698,2]
[361583652,1747624244975,-400.0,0.00013698,2]
[361583653,1747624244985,-400.0,0.00013698,2]
[361583654,1747624244994,-400.0,0.00013698,2]
[361583655,1747624245003,-666.93,0.00013698,2]
[361583656,1747624245012,-400.0,0.00013698,2]
[361583657,1747624245022,-812.5,0.00013698,2]
[361583658,1747624245033,-1569.73,0.00013698,2]
[361583659,1747624245042,-400.0,0.00013698,2]
[361583660,1747624245051,-400.0,0.00013698,2]
[361583661,1747624245060,-1051.29,0.00013698,2]
[361583662,1747624245069,-400.0,0.00013698,2]
[361583663,1747624245078,-400.0,0.00013698,2]
[361583664,1747624245093,-400.0,0.00013698,2]
[361583665,1747624245102,-1545.79,0.00013698,2]
[361583666,1747624245111,-400.0,0.00013698,2]
[361583667,1747624245119,-1217.13,0.00013698,2]
[361583668,1747624245128,-400.0,0.00013698,2]
[361583669,1747624245137,-400.0,0.00013698,2]
[361583670,1747624245147,-1045.96,0.00013698,2]
[361583671,1747624245156,-400.0,0.00013698,2]
[361583672,1747624245165,-922.42,0.00013698,2]
[361583673,1747624245175,-625.75,0.00013698,2]
[361583674,1747624245184,-400.0,0.00013698,2]
[361583675,1747624245193,-400.0,0.00013698,2]
[361583676,1747624245202,-400.0,0.00013698,2]
[361583677,1747624245211,-400.0,0.00013698,2]
[361583678,1747624245221,-400.0,0.00013698,2]
[361583679,1747624245230,-400.0,0.00013698,2]
[361583680,1747624245238,-882.53,0.00013698,2]
[361583681,1747624245247,-882.53,0.00013698,2]
[361583682,1747624245256,-882.53,0.00013698,2]
[361583683,1747624245266,-436.72,0.00013698,2]
[361583684,1747624245274,-400.0,0.00013698,2]
[361583685,1747624245283,-405.02465592,0.00013698,2]
[361583686,1747624245292,-400.0,0.00013698,2]
[361583687,1747624245301,-762.64,0.00013698,2]
[361583688,1747624245310,-2546.47,0.00013698,2]
[361583689,1747624245319,-718.51,0.00013698,2]
[361583690,1747624245327,-400.0,0.00013698,2]
[361583691,1747624245341,-400.0,0.00013698,2]
[361583692,1747624245350,-835.89,0.00013698,2]
[361583693,1747624245358,-400.0,0.00013698,2]
[361583694,1747624245367,-402.67758043,0.00013698,2]
[361583695,1747624245376,-473.75,0.00013698,2]
[361583696,1747624245388,-1142.94,0.00013698,2]
[361583697,1747624245397,-635.52,0.00013698,2]
[361583698,1747624245406,-400.0,0.00013698,2]
[361583699,1747624245415,-400.0,0.00013698,2]
[361583700,1747624245426,-996.01,0.00013698,2]
[361583701,1747624245435,-1227.7,0.00013698,2]
[361583702,1747624245444,-668.58,0.00013698,2]
[361583703,1747624245454,-2096.94,0.00013698,2]
[361583704,1747624245464,-400.0,0.00013698,2]
[361583705,1747624245473,-3675.563095,0.00013698,2]
[361583706,1747624245484,-400.0,0.00013698,2]
[361583707,1747624245493,-1825.53,0.00013698,2]
[361583708,1747624245502,-1350.179102,0.00013698,2]
[361583709,1747624245511,-563.45,0.00013698,2]
[361583710,1747624245520,-400.0,0.00013698,2]
[361583711,1747624245530,-7942.53,0.00013698,2]
[361583712,1747624245540,-699.15,0.00013698,2]
[361583713,1747624245549,-400.0,0.00013698,2]
[361583714,1747624245557,-1445.35,0.00013698,2]
[361583715,1747624245566,-2017.88371824,0.00013698,2]
[361583716,1747624245575,-396.50945981,0.00013698,2]
[361583717,1747624245590,-400.0,0.00013698,2]
[361583718,1747624245599,-460.01,0.00013698,2]
[361583719,1747624245608,-689.6,0.00013698,2]
[361583720,1747624245617,-400.0,0.00013698,2]
[361583721,1747624245627,-1639.1,0.00013698,2]
[361583722,1747624245636,-890.44,0.00013698,2]
[361583723,1747624245645,-423.66,0.00013698,2]
[361583724,1747624245654,-1277.44,0.00013698,2]
[361583725,1747624245664,-400.0,0.00013698,2]
[361583726,1747624245673,-1891.75,0.00013698,2]
[361583727,1747624245682,-400.0,0.00013698,2]
[361583728,1747624245691,-400.0,0.00013698,2]
[361583729,1747624245700,-689.59,0.00013698,2]
[361583730,1747624245709,-400.0,0.00013698,2]
[361583731,1747624245719,-402.73072152,0.00013698,2]
[361583732,1747624245727,-1237.37,0.00013698,2]
[361583733,1747624245736,-400.0,0.00013698,2]
[361583734,1747624245745,-4270.29,0.00013698,2]
[361583735,1747624245754,-1240.19,0.00013698,2]
[361583736,1747624245763,-602.26,0.00013698,2]
[361583737,1747624245772,-607.06,0.00013698,2]
[361583738,1747624245780,-400.0,0.00013698,2]
[361583739,1747624245789,-3907.35,0.00013698,2]
[361583740,1747624245798,-400.0,0.00013698,2]
[361583742,1747624245807,-400.0,0.00013698,2]
[361583743,1747624245816,-1457.67,0.00013698,2]
[361583745,1747624245825,-4120.19,0.00013698,2]
[361583746,1747624245837,-400.0,0.00013698,2]
[361583747,1747624245846,-498.55,0.00013698,2]
[361583749,1747624245855,-408.97,0.00013698,2]
[361583750,1747624245864,-400.0,0.00013698,2]
[361583752,1747624245873,-400.0,0.00013698,2]
[361583753,1747624245881,-400.0,0.00013698,2]
[361583755,1747624245890,-400.0,0.00013698,2]
[361583757,1747624245899,-2665.59,0.00013698,2]
[361583758,1747624245908,-400.0,0.00013698,2]
[361583760,1747624245917,-1307.66,0.00013698,2]
[361583762,1747624245926,-401.17383171,0.00013698,2]
[361583763,1747624245935,-404.10619949,0.00013698,2]
[361583765,1747624245945,-400.0,0.00013698,2]
[361583767,1747624245954,-691.04,0.00013698,2]
[361583768,1747624245963,-1116.67,0.00013698,2]
[361583770,1747624245971,-400.0,0.00013698,2]
[361583772,1747624245981,-8608.77,0.00013698,2]
[361583773,1747624245989,-400.0,0.00013698,2]
[361583775,1747624245999,-400.0,0.00013698,2]
[361583776,1747624246008,-7903.64,0.00013698,2]
[361583778,1747624246018,-400.0,0.00013698,2]
[361583780,1747624246027,-400.0,0.00013698,2]
[361583782,1747624246036,-400.0,0.00013698,2]
[361583784,1747624246045,-400.0,0.00013698,2]
[361583785,1747624246054,-597.5,0.00013698,2]
[361583786,1747624246063,-352.03425991,0.00013698,2]
[361583787,1747624246073,-902.87,0.00013698,2]
[361583788,1747624246082,-352.90578983,0.00013698,2]
[361583789,1747624246093,-2070.06,0.00013698,2]
[361583790,1747624246102,-400.0,0.00013698,2]
[361583791,1747624246111,-400.0,0.00013698,2]
[361583792,1747624246119,-400.0,0.00013698,2]
[361583793,1747624246128,-400.0,0.00013698,2]
[361583794,1747624246137,-400.0,0.00013698,2]
[361583795,1747624246146,-400.0,0.00013698,2]
[361583796,1747624246155,-4566.04,0.00013698,2]
[361583797,1747624246164,-400.0,0.00013698,2]
[361583798,1747624246173,-4592.59,0.00013698,2]
[361583799,1747624246182,-1348.04,0.00013698,2]
[361583800,1747624246191,-519.37,0.00013698,2]
[361583801,1747624246200,-400.0,0.00013698,2]
[361583802,1747624246210,-400.0,0.00013698,2]
[361583803,1747624246219,-726.2,0.00013698,2]
[361583804,1747624246228,-1246.28,0.00013698,2]
[361583805,1747624246237,-400.0,0.00013698,2]
[361583806,1747624246247,-400.0,0.00013698,2]
[361583807,1747624246255,-552.15,0.00013698,2]
[361583808,1747624246264,-400.0,0.00013698,2]
[361583809,1747624246273,-400.0,0.00013698,2]
[361583810,1747624246282,-400.0,0.00013698,2]
[361583811,1747624246293,-1247.62,0.00013698,2]
[361583812,1747624246302,-400.0,0.00013698,2]
[361583813,1747624246311,-400.0,0.00013698,2]
[361583814,1747624246320,-670.31,0.00013698,2]
[361583815,1747624246329,-400.0,0.00013698,2]
[361583816,1747624246342,-400.0,0.00013698,2]
[361583817,1747624246351,-408.08212494,0.00013698,2]
[361583818,1747624246360,-400.0,0.00013698,2]
[361583819,1747624246369,-1087.75,0.00013698,2]
[361583820,1747624246378,-403.29421554,0.00013698,2]
[361583821,1747624246390,-565.34,0.00013698,2]
[361583822,1747624246399,-1148.76,0.00013698,2]
[361583823,1747624246408,-1092.78,0.00013698,2]
[361583824,1747624246417,-730.15,0.00013698,2]
[361583825,1747624246426,-1049.1,0.00013698,2]
[361583826,1747624246435,-400.0,0.00013698,2]
[361583827,1747624246444,-698.87,0.00013698,2]
[361583828,1747624246453,-2533.21,0.00013698,2]
[361583829,1747624246462,-1334.78,0.00013698,2]
[361583830,1747624246472,-851.0,0.00013698,2]
[361583831,1747624246481,-400.0,0.00013698,2]
[361583832,1747624246489,-400.0,0.00013698,2]
[361583833,1747624246499,-1042.81,0.00013698,2]
[361583834,1747624246509,-89370.89,0.00013698,2]
[361583835,1747624246518,-400.0,0.00013698,2]
[361583836,1747624246527,-697.74,0.00013698,2]
[361583837,1747624246536,-402.14418664,0.00013698,2]
[361583838,1747624246545,-400.0,0.00013698,2]
[361583839,1747624246555,-606.67,0.00013698,2]